[Event "FRA-ch Youth 2017"]
[Site "Belfort"]
[Date "2017.04.18"]
[Round "4"]
[White "Guerin, Juliette"]
[Black "Chachiachvili, Mariam"]
[Result "1/2-1/2"]
[ECO "C44"]
[WhiteElo "1945"]
[BlackElo "1742"]
[Annotator "NA RC"]
[PlyCount "105"]
[EventDate "2017.??.??"]
[EventCountry "FRA"]
[SourceTitle "playchess.com"]
[Source "ChessBase"]
[SourceQuality "1"]
[TimeControl "5400+30"]

{[%evp 12,103,-7,32767,32767,-6,32767,32767,55,11,32767,52,42,62,47,0,73,57,95,93,98,40,60,24,25,26,46,38,38,28,64,56,89,67,64,35,53,0,0,0,21,22,23,0,0,0,20,15,33,33,63,73,71,61,56,66,70,60,86,42,52,54,37,25,56,62,83,25,30,0,42,35,36,44,45,8,3,32767,32767,0,32767,32767,0,-13,0,0,105,-6,-8,-11,-4,-4,0,0]} 1. e4 {[%emt 0:00:00]} e5 {[%emt 0:00:05]} 2. Nf3 {[%emt 0:00:00]} Nc6 {[%emt 0:00:05]} 3. d4 {[%emt 0:00:00]} exd4 {[%emt 0:00:08]} 4. Nxd4 {[%emt 0:00:00]} Nf6 {[%emt 0:00:20]} 5. Nxc6 {[%emt 0:00:07]} bxc6 {[%emt 0:00:08]} 6. Qe2 {[%emt 0:00:10] C45: Scotch Game} (6. Nd2 d5 7. exd5 cxd5 8. Bb5+ Bd7 9. Bxd7+ Qxd7 10. O-O Be7 11. b3 O-O 12. Bb2 Qf5 13. Nf3 Rfe8 14. Qd3 Qxd3 15. cxd3 {½-½ (30) Ivanchuk,V (2732)-Hou,Y (2649) Shenzhen 2017}) 6... Bc5 {[%emt 0:12:09]} 7. e5 {[%emt 0:02:03]} Nd5 {[%emt 0:01:05]} 8. c4 {[%emt 0:00:35]} Nb6 {[%emt 0:00:19]} 9. Qg4 {[%emt 0:08:27]} Rg8 $146 {[%emt 0:04:55]} (9... Kf8 $11) (9... g6 10. Bg5 Be7 11. Bh6 d5 12. Qf3 Bg5 13. Bg7 Rg8 {0-1 (67) Perez,M (2428)-Krysa,L (2496) Vicente Lopez 2016}) 10. Qe4 {[%emt 0:06:38]} Qe7 {[%emt 0:04:26]} 11. Bd3 {[%emt 0:07:50]} Bb7 {[%emt 0:06:03]} 12. O-O {[%emt 0:03:35]} O-O-O {[%emt 0:01:43]} 13. a3 {[%emt 0:06:10]} (13. Nd2 $14) 13... Qe6 {[%emt 0:03:32]} (13... d5 $11 {keeps the balance.} 14. Qf5+ (14. Qxh7 Qxe5 15. Nd2 dxc4 $15) 14... Nd7) 14. b4 {[%emt 0:05:12]} Be7 {[%emt 0:00:21] [#]} 15. c5 $1 {[%emt 0:08:14]} Nd5 {[%emt 0:02:10]} 16. Bd2 {[%emt 0:02:30]} (16. Nd2 $16) 16... d6 {[%emt 0:09:35]} 17. cxd6 {[%emt 0:21:50]} cxd6 {[%emt 0:02:19]} 18. exd6 {[%emt 0:01:12]} Qxe4 {[%emt 0:04:22]} 19. Bxe4 {[%emt 0:00:31]} Bxd6 {[%emt 0:00:17]} 20. Nc3 {[%emt 0:01:24]} Nxc3 {[%emt 0:13:30]} 21. Bxc3 {[%emt 0:00:03]} Rde8 {[%emt 0:00:22]} 22. Bxh7 {[%emt 0:02:57]} Bxh2+ {[%emt 0:01:30]} 23. Kh1 {[%emt 0:02:25]} Rh8 {[%emt 0:01:02]} 24. Bf5+ {[%emt 0:00:59]} Kc7 {[%emt 0:02:34]} 25. Bxg7 {[%emt 0:01:11]} Be5+ {[%emt 0:04:36]} 26. Bxh8 {[%emt 0:00:01]} Rxh8+ {[%emt 0:00:06]} 27. Kg1 {[%emt 0:00:29]} Bh2+ {[%emt 0:00:23]} 28. Kh1 {[%emt 0:00:01]} Be5+ {[%emt 0:00:10]} 29. Bh3 {[%emt 0:00:34]} Bxa1 {[%emt 0:00:06]} 30. Rxa1 {[%emt 0:00:07]} Bc8 {[%emt 0:02:31]} 31. Kh2 {[%emt 0:00:38]} Be6 {[%emt 0:00:34]} 32. Kg3 {[%emt 0:00:56]} Bd5 {[%emt 0:00:41]} 33. f3 {[%emt 0:00:29]} Re8 {[%emt 0:01:17]} 34. Kf2 {[%emt 0:01:43]} Bc4 {[%emt 0:01:52]} 35. f4 {[%emt 0:06:22]} Re2+ {[%emt 0:02:26]} 36. Kf3 {[%emt 0:00:01]} Rd2 {[%emt 0:00:27]} 37. Ke3 {[%emt 0:01:03]} Rc2 {[%emt 0:00:35]} 38. Kd4 {[%emt 0:01:38]} Bd5 {[%emt 0:00:20]} 39. Kd3 {[%emt 0:00:55]} Rb2 {[%emt 0:03:37]} 40. Kd4 {[%emt 0:03:58]} Bxg2 {[%emt 0:01:26]} 41. Bxg2 {[%emt 0:00:00]} Rxg2 {[%emt 0:00:11]} 42. Ke5 {[%emt 0:00:18]} Rg6 {[%emt 0:05:23]} 43. f5 {[%emt 0:02:26]} Rd6 $1 {[%emt 0:02:30]} 44. f6 {[%emt 0:00:02]} Kd7 {[%emt 0:01:21]} 45. Ra2 {[%emt 0:05:13]} Rd5+ {[%emt 0:00:19]} 46. Ke4 {[%emt 0:00:04]} Ke6 {[%emt 0:00:18]} 47. Rf2 {[%emt 0:00:06]} Re5+ {[%emt 0:00:54]} 48. Kd4 {[%emt 0:00:43]} Rf5 {[%emt 0:01:34]} (48... a5 $11) 49. Rc2 {[%emt 0:00:02]} Kd6 {[%emt 0:01:28]} 50. Rc3 {[%emt 0:01:54]} Rxf6 {[%emt 0:00:20]} 51. Rc5 {[%emt 0:00:01]} Re6 {[%emt 0:01:55]} 52. Ra5 $11 {[%emt 0:01:05]} Re7 {[%emt 0:00:16]} 53. Rf5 1/2-1/2

[Event "FRA-ch Youth 2017"]
[Site "Belfort"]
[Date "2017.04.18"]
[Round "4"]
[White "Yuan, Beline"]
[Black "Randrianarimanana, Alicia"]
[Result "1/2-1/2"]
[ECO "E70"]
[WhiteElo "1845"]
[BlackElo "1636"]
[Annotator "NA RC"]
[PlyCount "71"]
[EventDate "2017.??.??"]
[EventCountry "FRA"]
[SourceTitle "playchess.com"]
[Source "ChessBase"]
[SourceQuality "1"]
[TimeControl "5400+30"]

{[%evp 17,69,2,0,-14,32767,32767,-76,-58,-20,-58,-39,-33,-43,-49,-41,-36,-47,-32,-28,-139,-45,-185,-185,-199,-237,-238,-8,-57,0,32767,0,0,20,-129,-142,-68,-147,-134,-129,-132,-144,-139,-150,-193,-64,-53,0,-207,0,32767,32767,-118,-120,-131]} 1. d4 {[%emt 0:00:03]} Nf6 {[%emt 0:00:07]} 2. c4 {[%emt 0:00:26]} g6 {[%emt 0:00:05]} 3. Nc3 {[%emt 0:00:31]} Bg7 {[%emt 0:00:04]} 4. e4 {[%emt 0:00:34]} O-O {[%emt 0:00:05]} 5. e5 {[%emt 0:01:17]} Ne8 {[%emt 0:00:41]} 6. f4 {[%emt 0:00:25]} d6 {[%emt 0:00:51]} 7. Nf3 {[%emt 0:00:24]} c5 {[%emt 0:01:13]} 8. dxc5 {[%emt 0:03:17]} Nc6 {[%emt 0:01:04]} 9. cxd6 {[%emt 0:01:59] LiveBook: 5 Games E70: King's Indian: Miscellaneous lines with 4 e4, including 5 Nge2 and 5 Bd3 0-0 6 Nge2} exd6 {[%emt 0:01:25]} 10. Be2 {[%emt 0:01:12]} Bg4 {[%emt 0:00:37]} 11. exd6 {[%emt 0:00:23]} Nxd6 {[%emt 0:03:16]} 12. O-O {[%emt 0:01:01]} (12. c5 Nf5 13. Qxd8 Raxd8 14. O-O Rfe8 {0-1 (42) Volkov,S (2630)-Wojtkiewicz,A (2564) Internet 2004}) 12... Bxf3 $146 {[%emt 0:12:49]} (12... Re8 $17 {White should prevent ...Qb6+.} 13. h3 Be6 14. Nd5 Na5 15. f5 Bxd5 16. cxd5 Nxf5 {0-1 (52) Lieb,H (2255)-Petrushin,A (2426) Dresden 2008}) 13. Rxf3 {[%emt 0:01:16]} Re8 {[%emt 0:04:26]} 14. Bf1 {[%emt 0:08:12]} Qb6+ {[%emt 0:16:02]} 15. Kh1 {[%emt 0:01:00]} Bxc3 {[%emt 0:03:57]} 16. bxc3 {[%emt 0:05:58]} Rad8 {[%emt 0:16:57]} 17. Qc2 {[%emt 0:10:58]} Na5 {[%emt 0:06:22]} 18. h3 {[%emt 0:17:40]} (18. Rb1 $15 Qc6 19. f5) 18... Ndxc4 {[%emt 0:03:45]} ({But not} 18... Re1 19. Rb1 Qc6 20. Be3 Rxb1 21. Qxb1) ({Black should play} 18... Naxc4 $17 {aiming for ...Re1.} 19. Rb1 Qc7) 19. f5 {[%emt 0:04:34]} (19. Rb1 $15 Qf6 20. Kh2) 19... Re1 {[%emt 0:09:59]} 20. fxg6 {[%emt 0:15:01]} hxg6 {[%emt 0:01:13]} ({Less strong is} 20... fxg6 21. Rb1 Qc5 {[#]} 22. Bg5 $1 {[%mdl 512]} Rxf1+ 23. Rbxf1 Qxg5 24. Qf2 $15) 21. Rb1 {[%emt 0:02:20]} Qxb1 $2 {[%emt 0:04:34]} (21... Qc5 $19 {Threatens to win with ...Rdd1.} 22. Bg5 {[#]} Rxf1+ $1 {[%mdl 512]} 23. Rfxf1 Qxg5) 22. Qxb1 {[%emt 0:00:26]} Rdd1 {[%emt 0:00:04]} 23. Kh2 {[%emt 0:01:20]} Rxc1 {[%emt 0:03:06]} 24. Qb5 {[%emt 0:00:19]} Nd2 {[%emt 0:02:20]} 25. Rf4 $2 {[%emt 0:04:42]} (25. Rxf7 $11 Kxf7 26. Qd5+ (26. Qd7+ Re7 27. Qd5+ Kf8 28. Qd8+ Kf7 29. Qd5+ Kg7 30. Qd4+ Kg8 31. Qd8+ Kf7 32. Qd5+ $11) 26... Kg7 27. Qd4+ Kh7 28. Qd7+ Kg8 29. Qxd2) 25... Nxf1+ {[%emt 0:00:34]} 26. Rxf1 {[%emt 0:00:17]} Rxf1 {[%emt 0:00:08]} 27. Qxa5 {[%emt 0:01:36] [#]} b6 $1 {[%emt 0:02:55]} 28. Qxa7 {[%emt 0:04:18]} Rh1+ {[%emt 0:00:06]} ({Worse is} 28... Rxc3 29. Qxb6 Ra3 30. Qd8+ Kg7 31. Qd5 $11) 29. Kg3 {[%emt 0:00:19]} Rxc3+ {[%emt 0:00:04]} 30. Kh4 {[%emt 0:02:13] [#]} Rc4+ $2 {[%emt 0:03:25]} (30... Re1 $1 $19 {[%cal Re1e4] Threatens to win with ...Re4+.} 31. Kg5 Re5+ 32. Kf4 Rf5+ 33. Ke4 Rc2) 31. Kg3 $1 {[%emt 0:06:08]} Rc3+ {[%emt 0:00:28]} (31... Rb1 $17 32. Qb8+ Kg7) 32. Kh4 {[%emt 0:00:16]} Rc4+ $11 {[%emt 0:00:04]} 33. g4 {[%emt 0:00:42]} Rb1 {[%emt 0:01:21]} 34. Qb8+ {[%emt 0:00:35]} Kg7 {[%emt 0:00:25]} 35. Qe5+ {[%emt 0:00:10]} Kh7 {[%emt 0:00:25]} 36. Qe7 1/2-1/2

[Event "FRA-ch Youth 2017"]
[Site "Belfort"]
[Date "2017.04.18"]
[Round "4"]
[White "Candelot, Clement"]
[Black "Warnier, Yanis"]
[Result "1-0"]
[ECO "C54"]
[WhiteElo "1839"]
[BlackElo "1526"]
[Annotator "NA RC"]
[PlyCount "45"]
[EventDate "2017.??.??"]
[EventCountry "FRA"]
[SourceTitle "playchess.com"]
[Source "ChessBase"]
[SourceQuality "1"]
[TimeControl "5400+30"]

{[%evp 8,44,28,32767,32767,32767,32767,32767,32767,32767,32767,32767,32767,32767,18,32767,71,70,65,21,5,0,6,0,15,16,25,-7,0,0,0,-12,-15,-16,-16,-20,-14,-29,-1]} 1. e4 {[%emt 0:00:00]} e5 {[%emt 0:00:07]} 2. Nf3 {[%emt 0:00:00]} Nc6 {[%emt 0:00:07]} 3. Bc4 {[%emt 0:00:27]} Bc5 {[%emt 0:00:11]} 4. c3 {[%emt 0:00:22]} Nf6 {[%emt 0:00:15]} 5. d4 {[%emt 0:00:47]} exd4 {[%emt 0:00:16]} 6. cxd4 {[%emt 0:00:06]} Bb4+ {[%emt 0:00:04]} 7. Bd2 {[%emt 0:01:11]} Nxe4 {[%emt 0:04:58]} 8. Bxb4 {[%emt 0:01:07]} Nxb4 {[%emt 0:00:19]} 9. Bxf7+ {[%emt 0:01:55]} Kxf7 {[%emt 0:01:36]} 10. Qb3+ {[%emt 0:00:09]} d5 {[%emt 0:01:21]} 11. Ne5+ {[%emt 0:00:59] C54: Giuoco Piano: 4 c3 Nf6, main lines with 5 d4 and 5 d3} Ke7 {[%emt 0:06:42]} (11... Ke6 $11 {keeps the balance.} 12. Qxb4 c5 (12... Qf8 13. Qxf8 Rxf8 14. f3 Ng5 15. Nc3 c6 16. h4 Nf7 17. Nd3 Kd6 18. Kf2 Nd8 {½-½ (55) Hou,Y (2673)-Aronian,L (2797) Wijk aan Zee 2015})) 12. Qxb4+ Qd6 {[%emt 0:00:21]} 13. Qxd6+ {[%emt 0:04:39]} (13. Qb3 $16) 13... Nxd6 {[%emt 0:00:23]} 14. Nc3 {[%emt 0:03:09]} c6 {[%emt 0:08:11]} 15. O-O {[%emt 0:06:39]} Re8 {[%emt 0:00:17]} 16. Rfe1 {[%emt 0:09:45]} Kf8 {[%emt 0:03:00]} 17. b4 $146 {[%emt 0:06:50]} (17. Re3 Nf5 18. Rf3 Kg8 {1-0 (59) Saak,S-Gahn,C Lingen 2002}) 17... Be6 {[%emt 0:07:16]} 18. Rab1 {[%emt 0:08:57]} Bf5 {[%emt 0:12:17]} 19. Rb2 {[%emt 0:07:12]} Nc4 {[%emt 0:02:01]} 20. Rbe2 {[%emt 0:00:53]} Nxe5 {[%emt 0:00:29]} 21. Rxe5 {[%emt 0:00:19]} Rxe5 {[%emt 0:04:44]} 22. Rxe5 {[%emt 0:00:52]} Re8 $11 {[%emt 0:00:30]} (22... Bd3) 23. Rxf5+ {[%emt 0:00:30]} 1-0

[Event "FRA-ch Youth 2017"]
[Site "Belfort"]
[Date "2017.04.18"]
[Round "4"]
[White "Bruneau, Maylis"]
[Black "Bellahcene, Anissa"]
[Result "0-1"]
[ECO "A80"]
[WhiteElo "1794"]
[BlackElo "1806"]
[Annotator "NA RC"]
[PlyCount "60"]
[EventDate "2017.??.??"]
[EventCountry "FRA"]
[SourceTitle "playchess.com"]
[Source "ChessBase"]
[SourceQuality "1"]
[TimeControl "5400+30"]

{[%evp 12,57,66,51,64,72,77,37,45,5,22,-2,-13,-31,-6,0,0,4,79,85,100,99,115,-6,20,0,0,-156,-21,-102,-113,-674,-213,-302,-360,-351,-375,-362,-363,-357,-339,-389,-378,-800,-277,-277,32767,-29994]} 1. d4 {[%emt 0:00:00]} f5 {[%emt 0:00:32]} 2. Nf3 {[%emt 0:00:23]} e6 {[%emt 0:00:29]} 3. Bf4 {[%emt 0:01:25]} d5 {[%emt 0:01:27]} 4. e3 {[%emt 0:01:20] A80: Dutch Defence: Unusual White second moves} c6 {[%emt 0:01:15]} 5. Nbd2 {[%emt 0:04:14]} Nf6 {[%emt 0:02:47]} 6. c4 {[%emt 0:03:22]} (6. Bd3 Be7 7. h3 Nbd7 8. g4 Ne4 9. c3 a5 10. Qc2 a4 11. c4 O-O {1-0 (26) Agrest,E (2596)-Vaarala,E (2298) Sweden 2016}) 6... Be7 {[%emt 0:04:27]} 7. h3 {[%emt 0:01:44]} Nbd7 {[%emt 0:02:09]} 8. Bd3 {[%emt 0:02:56]} O-O $146 {[%emt 0:03:42]} (8... Ne4 9. O-O O-O 10. Rc1 Kh8 11. Qe2 Qe8 12. Ne5 Nxd2 13. Qxd2 {1-0 (77) Kislik,E (2368)-Pinterne,K (2133) Hungary 2013}) 9. Ng5 {[%emt 0:08:48]} Nb8 {[%emt 0:08:34]} 10. c5 {[%emt 0:07:05]} Ne4 {[%emt 0:06:52]} 11. Ngxe4 {[%emt 0:02:43]} fxe4 {[%emt 0:03:14]} 12. Be2 {[%emt 0:03:17]} b6 {[%emt 0:03:50]} 13. b4 {[%emt 0:10:28]} Nd7 {[%emt 0:05:27]} 14. O-O {[%emt 0:03:18]} Bh4 {[%emt 0:10:47]} (14... bxc5 $11 15. bxc5 (15. dxc5 a5 $11) 15... e5) 15. Nb3 {[%emt 0:09:58]} Qf6 {[%emt 0:04:44]} 16. g3 {[%emt 0:11:57]} Bg5 {[%emt 0:00:10] [#]} 17. Kh2 {[%emt 0:05:22]} ({Better is} 17. Bd6 $1 $16) 17... e5 {[%emt 0:02:38]} 18. dxe5 {[%emt 0:01:51]} Nxe5 {[%emt 0:00:15]} 19. Nd4 $2 {[%emt 0:01:48]} (19. b5 $11) 19... Bd7 {[%emt 0:06:50]} (19... Bxf4 $17 20. gxf4 bxc5 21. bxc5 Qh4 22. fxe5 Bxh3) 20. Qc1 {[%emt 0:07:33]} (20. Bxe5 $15 Qxe5 21. Bg4 bxc5 22. Bxd7 (22. bxc5 Qe7 $15) 22... cxd4 23. exd4) 20... Bxf4 {[%emt 0:04:32]} 21. gxf4 $4 {[%emt 0:02:21]} (21. exf4 $17 Nd3 22. Qc3) 21... Ng6 $2 {[%emt 0:01:34]} (21... Qh4 {( -> ...Nf3+)} 22. fxe5 Bxh3) 22. f5 {[%emt 0:02:44]} Bxf5 {[%emt 0:04:39]} 23. Nxf5 {[%emt 0:00:07]} Qxf5 {[%emt 0:00:05]} 24. cxb6 {[%emt 0:00:58]} Qe5+ {[%emt 0:02:49]} (24... axb6 $2 25. Qxc6 Rac8 26. Qd6 $17) 25. Kh1 {[%emt 0:01:06]} Rf6 {[%emt 0:03:23]} ({Weaker is} 25... axb6 26. Qxc6 Ne7 27. Qb7 $17) 26. b7 {[%emt 0:01:31]} Rb8 {[%emt 0:00:23]} 27. b5 $2 {[%emt 0:02:03]} (27. Rb1 Rxb7 28. Qb2) 27... Rxb7 $2 {[%emt 0:01:26]} (27... Nh4 {( -> ...Rf3!)} 28. a4 {[#]} Rf3 $1 {[%mdl 512]} 29. Bxf3 Nxf3 30. bxc6 Qh2#) 28. bxc6 {[%emt 0:00:48]} Rc7 {[%emt 0:00:02]} 29. Bb5 {[%emt 0:00:57]} (29. Rb1 $19) 29... Rf3 {[%emt 0:00:34]} 30. Kg2 {[%emt 0:01:42]} Nh4+ {[%emt 0:00:13] Rh1 Qe8+} 0-1

[Event "FRA-ch Youth 2017"]
[Site "Belfort"]
[Date "2017.04.18"]
[Round "4"]
[White "Belluire, Beatrice"]
[Black "Lomandong Noela-Joyce"]
[Result "1-0"]
[ECO "B00"]
[WhiteElo "1786"]
[BlackElo "1987"]
[Annotator "NA RC"]
[PlyCount "114"]
[EventDate "2017.??.??"]
[EventCountry "FRA"]
[SourceTitle "playchess.com"]
[Source "ChessBase"]
[SourceQuality "1"]
[TimeControl "5400+30"]

{[%evp 9,113,2,0,8,151,144,158,151,165,152,178,93,72,80,94,20,43,59,68,48,43,47,53,48,49,58,99,0,22,-25,0,32767,90,104,122,93,32767,32767,81,84,81,0,18,0,0,0,44,3,6,14,43,0,15,0,0,0,361,364,378,360,401,414,438,447,475,465,827,266,286,331,274,250,274,289,335,268,311,32767,285,368,380,431,503,571,1000,1097,802,880,757,983,658,1210,974,938,1165,1543,32767,1352,32767,4841,32767,29982,29984,29984,29981,29985]} 1. e4 {[%emt 0:00:00]} b6 {[%emt 0:01:17]} 2. d4 {[%emt 0:00:00]} Bb7 {[%emt 0:00:04]} 3. Nc3 {[%emt 0:01:18]} Nf6 {[%emt 0:00:05] B00: Queen's Fianchetto Defence, Nimzowitsch Defence} (3... e6 4. Be3 g6 5. Qd2 Bg7 6. O-O-O d6 7. h4 h6 8. h5 g5 9. f4 gxf4 10. Bxf4 Nd7 11. Nf3 a6 12. Kb1 {1-0 (68) Guseinov,G (2631)-Kamsky,G (2741) Khanty-Mansiysk 2013}) 4. f3 {[%emt 0:08:23]} e6 {[%emt 0:00:39]} 5. Be3 {[%emt 0:06:43]} Bb4 {[%emt 0:03:13]} 6. Qd2 {[%emt 0:01:34]} Bxe4 $146 {[%emt 0:10:31]} (6... d5 $11 {remains equal.}) (6... a5 7. a3 Be7 8. g4 d6 9. Bb5+ c6 10. Bd3 Qc7 11. Nge2 Nfd7 12. O-O-O {1-0 (43) Caro Martinez,R (1714)-Camus,A (1955) Santa Eulalia de Roncana 2011}) 7. fxe4 {[%emt 0:10:23]} Nxe4 {[%emt 0:00:07]} 8. Qd3 {[%emt 0:02:29]} Bxc3+ {[%emt 0:01:41]} 9. bxc3 {[%emt 0:00:12]} Qh4+ {[%emt 0:00:12]} 10. Ke2 {[%emt 0:31:16]} (10. g3 $18 {and White stays clearly on top.} Nxg3 11. Nf3 (11. hxg3 Qxh1 12. Be2 Qb7 $11)) 10... f5 {[%emt 0:19:39]} 11. Nh3 {[%emt 0:07:28]} Nc6 {[%emt 0:04:54]} 12. Bf2 {[%emt 0:01:03]} (12. g3 $16 Qh5+ 13. Ke1) 12... Qg4+ {[%emt 0:06:53]} 13. Ke1 {[%emt 0:00:45]} Ne7 {[%emt 0:00:10]} 14. Rg1 {[%emt 0:03:21]} Nd5 {[%emt 0:07:11]} 15. Be2 {[%emt 0:00:17]} Qg6 $1 {[%emt 0:00:05]} 16. c4 {[%emt 0:02:24]} Nb4 {[%emt 0:06:24]} 17. Qb3 {[%emt 0:01:38]} c5 {[%emt 0:09:04]} (17... Nc6 $11 {remains equal.}) 18. a3 {[%emt 0:03:23]} (18. Bf3 $16) 18... Nc6 {[%emt 0:00:15]} 19. d5 {[%emt 0:01:23]} Qf6 {[%emt 0:03:36]} 20. Rd1 {[%emt 0:00:26]} Nxf2 {[%emt 0:00:30]} (20... exd5 $11 {remains equal.} 21. Nf4 (21. Rxd5 O-O $15) (21. cxd5 Na5 22. Qd3 Nc3 $11) 21... d4) 21. Kxf2 {[%emt 0:04:32]} ({Much weaker is} 21. Nxf2 Nd4 22. Qd3 O-O $11) 21... Nd4 {[%emt 0:00:34]} 22. Qd3 {[%emt 0:00:34]} Qh4+ {[%emt 0:03:14]} 23. Kf1 {[%emt 0:00:01]} O-O {[%emt 0:00:51]} 24. c3 {[%emt 0:00:47]} Nxe2 {[%emt 0:00:39]} 25. Qxe2 {[%emt 0:01:59]} (25. Kxe2 $16 e5 26. Rdf1) 25... Rae8 {[%emt 0:02:01]} 26. Qd3 {[%emt 0:02:21]} e5 {[%emt 0:00:32]} 27. Re1 {[%emt 0:00:46]} h6 {[%emt 0:05:34]} (27... e4 $5 28. Qg3 $8 Qd8 $11) 28. Re3 {[%emt 0:02:27]} e4 {[%emt 0:03:58]} 29. Qe2 {[%emt 0:00:07]} Kh7 {[%emt 0:02:14]} 30. Nf2 {[%emt 0:01:57]} ({White should play} 30. Qc2 $14) 30... Qxh2 {[%emt 0:01:59]} 31. g3 {[%emt 0:00:14]} f4 {[%emt 0:00:56]} 32. Rh1 {[%emt 0:01:35] [#]} f3 $2 {[%emt 0:00:23]} (32... Qxh1+ $1 $11 {[%mdl 512]} 33. Nxh1 fxe3+ 34. Ke1 Rf3) 33. Rxh2 {[%emt 0:00:14]} fxe2+ {[%emt 0:00:01]} 34. Kxe2 {[%emt 0:00:02]} Re5 {[%emt 0:00:26]} 35. Nxe4 {[%emt 0:00:47]} Rfe8 {[%emt 0:00:17]} 36. Kd3 {[%emt 0:00:12]} Kg6 {[%emt 0:01:35]} 37. Rhe2 {[%emt 0:00:27]} b5 {[%emt 0:00:35]} (37... Rf8 $142 38. Nd6 Rxe3+ 39. Rxe3 h5) 38. cxb5 {[%emt 0:00:54]} (38. Nxc5 $142 bxc4+ 39. Kd4 Rxe3 40. Rxe3 Rxe3 41. Kxe3) 38... Rxd5+ {[%emt 0:00:15]} 39. Kc4 {[%emt 0:00:01]} Rde5 {[%emt 0:00:10]} 40. a4 {[%emt 0:01:23]} d5+ {[%emt 0:00:22]} 41. Kd3 {[%emt 0:01:16]} dxe4+ {[%emt 0:03:36]} ({Stronger than} 41... Rxe4 42. Rxe4 dxe4+ 43. Rxe4 $18) 42. Rxe4 {[%emt 0:00:01]} Rd8+ {[%emt 0:00:31]} 43. Kc4 {[%emt 0:00:24]} Rg5 {[%emt 0:00:56]} 44. R2e3 {[%emt 0:02:09]} Rc8 {[%emt 0:01:32]} 45. a5 {[%emt 0:00:48]} Kh5 {[%emt 0:00:55]} 46. Re5 {[%emt 0:01:43]} Kg6 {[%emt 0:02:16]} 47. Rxg5+ {[%emt 0:00:14]} Kxg5 {[%emt 0:00:10]} 48. Re5+ {[%emt 0:00:08]} Kf6 {[%emt 0:00:53]} 49. Rxc5 {[%emt 0:00:07]} Re8 {[%emt 0:00:02]} 50. b6 {[%emt 0:00:59]} axb6 {[%emt 0:00:15]} 51. axb6 {[%emt 0:00:02]} Rb8 {[%emt 0:00:14]} 52. Kb5 {[%emt 0:00:27]} g5 {[%emt 0:00:23]} 53. Ka6 {[%emt 0:00:12]} Ke7 54. Ka7 {[%emt 0:00:10]} Rd8 {[%emt 0:01:23]} 55. b7 {[%emt 0:00:21]} Kd6 {[%emt 0:00:14]} 56. Rc8 {[%emt 0:00:15]} Rd7 {[%emt 0:00:04]} 57. Ka8 {[%emt 0:00:10]} Kd5 1-0